fUSD/lending_fUSD_20260224
["ID","MTS","AMOUNT","RATE_DAILY","PERIOD"]
[406536062,1771923038563,-581.29,0.00013698,2]
[406536063,1771923038573,-581.29,0.00013698,2]
[406536064,1771923038582,-581.29,0.00013698,2]
[406536065,1771923038592,-581.29,0.00013698,2]
[406536066,1771923038601,-581.29,0.00013698,2]
[406536067,1771923038611,-581.29,0.00013698,2]
[406536068,1771923038621,-581.29,0.00013698,2]
[406536069,1771923038631,-581.29,0.00013698,2]
[406536070,1771923038641,-581.29,0.00013698,2]
[406536071,1771923038651,-581.29,0.00013698,2]
[406536072,1771923038661,-581.29,0.00013698,2]
[406536073,1771923038671,-581.29,0.00013698,2]
[406536074,1771923038682,-581.29,0.00013698,2]
[406536075,1771923038691,-581.29,0.00013698,2]
[406536076,1771923038701,-581.29,0.00013698,2]
[406536077,1771923038711,-581.29,0.00013698,2]
[406536078,1771923038721,-500.0,0.00013698,2]
[406536079,1771923038731,-500.0,0.00013698,2]
[406536080,1771923038741,-500.0,0.00013698,2]
[406536081,1771923038751,-500.0,0.00013698,2]
[406536082,1771923038760,-500.0,0.00013698,2]
[406536083,1771923038770,-500.0,0.00013698,2]
[406536084,1771923038780,-500.0,0.00013698,2]
[406536085,1771923038790,-500.0,0.00013698,2]
[406536086,1771923038800,-500.0,0.00013698,2]
[406536087,1771923038810,-500.0,0.00013698,2]
[406536088,1771923038819,-500.0,0.00013698,2]
[406536089,1771923038829,-500.0,0.00013698,2]
[406536090,1771923038839,-500.0,0.00013698,2]
[406536091,1771923038848,-500.0,0.00013698,2]
[406536092,1771923038858,-500.0,0.00013698,2]
[406536093,1771923038868,-500.0,0.00013698,2]
[406536094,1771923038879,-522.40502764,0.00013698,2]
[406536095,1771923038890,-500.0,0.00013698,2]
[406536096,1771923038900,-136.97049211,0.00013698,2]
[406536097,1771923038918,-363.02950789,0.00013698,2]
[406536098,1771923038928,-500.0,0.00013698,2]
[406536099,1771923038937,-500.0,0.00013698,2]
[406536100,1771923038947,-269.29069422,0.00013698,2]
[406536101,1771923038957,-500.0,0.00013699,2]
[406536102,1771923038969,-164.16786887,0.00013699,2]
[406536103,1771923038980,-503.99220136,0.00013699,2]
[406536104,1771923038989,-504.16390705,0.00013699,2]
[406536105,1771923038999,-511.18624479,0.00013699,2]
[406536106,1771923039010,-500.0,0.00013699,2]
[406536107,1771923039019,-500.0,0.00013699,2]
[406536108,1771923039029,-504.28462668,0.00013699,2]
[406536109,1771923039039,-500.0,0.00013699,2]
[406536110,1771923039048,-500.0,0.00013699,2]
[406536111,1771923039058,-501.16839178,0.00013699,2]
[406536112,1771923039068,-503.3459029,0.00013699,2]
[406536113,1771923039078,-162.13031906,0.00013699,2]
[406536114,1771923039088,-304.38005979,0.00013699,2]
[406536115,1771923039098,-340.64052138,0.00013699,2]
[406536116,1771923039109,-159.35947862,0.00013699,2]
[406536117,1771923039120,-500.0,0.00013699,2]
[406536118,1771923039130,-500.0,0.00013699,2]
[406536119,1771923039140,-168.61283304,0.00013699,2]
[406536120,1771923039150,-500.0,0.00013699,2]
[406536121,1771923039159,-500.0,0.00013699,2]
[406536122,1771923039169,-487.94127816,0.00013699,2]
[406536123,1771923039179,-501.44667058,0.00013699,2]
[406536124,1771923039188,-599.206441,0.00013699,2]
[406536125,1771923039198,-501.93759306,0.00013699,2]
[406536126,1771923039208,-500.0,0.00013699,2]
[406536127,1771923039217,-170.38160206,0.00013699,2]
[406536128,1771923039231,-500.0,0.00013699,2]
[406536129,1771923039240,-500.0,0.00013699,2]
[406536130,1771923039250,-509.0327441,0.00013699,2]
[406536131,1771923039259,-210.9719246,0.00013699,2]
[406536132,1771923039272,-292.63202423,0.00013699,2]
[406536133,1771923039282,-500.0,0.00013699,2]
[406536134,1771923039292,-209.6165406,0.00013699,2]
[406536135,1771923039304,-500.0,0.00013699,2]
[406536136,1771923039314,-500.0,0.00013699,2]
[406536137,1771923039323,-150.0,0.000137,2]
[406536138,1771923039332,-150.0,0.000137,2]
[406536139,1771923039342,-150.0,0.000137,2]
[406536140,1771923039351,-215.42973367,0.000137,2]
[406536141,1771923039360,-734.4,0.000137,2]
[406536142,1771923039370,-734.4,0.000137,2]
[406536143,1771923039379,-734.4,0.000137,2]
[406536144,1771923039389,-734.4,0.000137,2]
[406536145,1771923039398,-734.4,0.000137,2]
[406536146,1771923039408,-6477.84941444,0.00013733,2]
[406536147,1771923039419,-500.0,0.00013742,2]
[406536148,1771923039428,-778.04,0.00013753,2]
[406536149,1771923039437,-245.76618828,0.00013785,2]
[406536150,1771923039447,-1625.86,0.00013814,2]
[406536151,1771923039456,-150.0,0.00013885,2]
[406536152,1771923039465,-150.0,0.00013886,2]
[406536153,1771923039475,-150.0,0.00013887,2]
[406536154,1771923039484,-150.0,0.00013888,2]
[406536155,1771923039494,-150.0,0.00013889,2]
[406536156,1771923039503,-150.0,0.0001389,2]
[406536157,1771923039512,-150.0,0.00013891,2]
[406536158,1771923039521,-150.0,0.00013892,2]
[406536159,1771923039531,-1000.0,0.00013893,2]
[406536160,1771923039540,-150.0,0.00013893,2]
[406536161,1771923039550,-150.0,0.00013894,2]
[406536162,1771923039559,-150.0,0.00013895,2]
[406536163,1771923039568,-150.0,0.00013896,2]
[406536164,1771923039577,-206.290511,0.00013897,2]
[406536165,1771923039587,-3292.0,0.00013985,2]
[406536166,1771923039596,-736.0,0.00014001,2]
[406536167,1771923039605,-500.0,0.00014016,2]
[406536168,1771923039615,-778.04,0.00014027,2]
[406536169,1771923039624,-1625.86,0.00014088,2]
[406536170,1771923039633,-250.0,0.00014147,2]
[406536171,1771923039643,-1500.0,0.00014168,2]
[406536172,1771923039652,-1371.93707751,0.00014168,2]
[406536173,1771923039664,-110.55972537,0.00014168,2]
[406536174,1771923039673,-156.53877197,0.00014168,2]
[406536176,1771923039758,-847.0,0.00012228,2]
[406536177,1771923039795,-1833.32,0.00012228,2]
[406536178,1771923039949,-281.649,0.00012228,2]
[406536179,1771923040026,-24181.89051157,0.00012228,2]
[406536180,1771923040036,-31936.11955916,0.00013033,2]
[406536181,1771923040046,-27143.85951157,0.00013039,2]
[406536182,1771923040055,-155.0,0.00013697,2]
[406536183,1771923040065,-1343.46122803,0.00014168,2]
[406536184,1771923040074,-1500.0,0.00014168,2]
[406536185,1771923040084,-502.25561136,0.00014168,2]
[406536186,1771923040093,-1027.71923747,0.00014168,2]
[406536187,1771923040103,-1500.0,0.00014168,2]
[406536188,1771923040111,-1500.0,0.00014168,2]
[406536189,1771923040120,-501.53221813,0.00014247,2]
[406536190,1771923040130,-1000.0,0.00014247,2]
[406536191,1771923040139,-1000.0,0.00014247,2]
[406536192,1771923040148,-1000.0,0.00014247,2]
[406536193,1771923040157,-1028.84101903,0.00014247,2]
[406536194,1771923040167,-483.17728486,0.00014247,2]
[406536195,1771923040176,-1000.0,0.00014247,2]
[406536196,1771923040185,-1092.86766843,0.00014247,2]
[406536197,1771923040195,-1000.0,0.00014247,2]
[406536198,1771923040204,-1000.0,0.00014247,2]
[406536199,1771923040213,-1000.0,0.00014247,2]
[406536200,1771923040223,-583.60061699,0.00014247,2]
[406536201,1771923040236,-500.0,0.00014247,2]
[406536202,1771923040245,-436.95947364,0.00014247,2]
[406536203,1771923040254,-1000.0,0.00014247,2]
[406536204,1771923040263,-243.69912151,0.00014247,2]
[406536205,1771923040274,-500.0,0.0001429,2]
[406536206,1771923040283,-811.21,0.00014301,2]
[406536207,1771923040294,-1000.0,0.00014353,2]
[406536208,1771923040304,-1625.86,0.00014362,2]
[406536209,1771923040313,-160.0,0.00014455,2]
[406536210,1771923040323,-173.87087054,0.00014458,2]
[406536211,1771923040332,-245.76618822,0.00014471,2]
[406536212,1771923040342,-482.62264482,0.00014503,2]
[406536213,1771923040351,-500.0,0.00014564,2]
[406536214,1771923040360,-1205.9102,0.00014604,2]
[406536215,1771923040369,-151.0,0.00014634,2]
[406536216,1771923040379,-151.0,0.00014634,2]
[406536217,1771923040389,-151.0,0.00014634,2]
[406536218,1771923040398,-151.0,0.00014634,2]
[406536219,1771923040408,-1625.86,0.00014636,2]
[406536220,1771923040417,-500.0,0.00014716,2]
[406536221,1771923040426,-500.0,0.00014716,2]
[406536222,1771923040436,-500.0,0.00014716,2]
[406536223,1771923040445,-276.82336401,0.00014716,2]
[406536224,1771923040454,-2000.0,0.00014716,2]
[406536225,1771923040464,-1003.87713345,0.00014716,2]
[406536226,1771923040473,-2000.0,0.00014716,2]
[406536227,1771923040482,-2000.0,0.00014716,2]
[406536228,1771923040491,-6477.84941444,0.00014775,2]
[406536229,1771923040500,-512.1,0.00014794,2]
[406536230,1771923040509,-500.0,0.00014794,2]
[406536231,1771923040519,-500.0,0.00014794,2]
[406536232,1771923040528,-581.29,0.00014794,2]
[406536233,1771923040538,-1500.0,0.00014795,2]
[406536234,1771923040547,-1390.05507377,0.00014795,2]
[406536235,1771923040556,-1503.05357398,0.00014795,2]
[406536236,1771923040565,-602.53164684,0.00014795,2]
[406536237,1771923040575,-193.71551848,0.00014795,2]
[406536238,1771923040584,-1500.0,0.00014795,2]
[406536239,1771923040593,-1500.0,0.00014795,2]
[406536240,1771923040603,-1500.0,0.00014795,2]
[406536241,1771923040612,-291.85083956,0.00014838,2]
[406536242,1771923040621,-1847.79,0.00014853,2]
[406536243,1771923040631,-482.62264482,0.00014866,2]
[406536244,1771923040640,-1625.91950757,0.0001491,2]
[406536245,1771923040649,-250.0,0.00015,2]
[406536246,1771923040659,-500.0,0.00015063,2]
[406536247,1771923040668,-500.0,0.00015063,2]
[406536248,1771923040678,-500.0,0.00015063,2]
[406536249,1771923040687,-500.0,0.00015063,2]
[406536250,1771923040696,-500.0,0.00015063,2]
[406536251,1771923040705,-500.0,0.00015063,2]
[406536252,1771923040714,-500.0,0.00015063,2]
[406536253,1771923040771,-174.61919141,0.00015063,2]
[406536254,1771923040780,-500.0,0.00015063,2]
[406536255,1771923040790,-151.0,0.00015063,2]
[406536256,1771923040799,-500.0,0.00015063,2]
[406536257,1771923040808,-500.0,0.00015063,2]
[406536258,1771923040818,-500.0,0.00015063,2]
[406536259,1771923040827,-500.0,0.00015063,2]
[406536260,1771923040837,-500.0,0.00015063,2]
[406536261,1771923040847,-592.26070942,0.00015063,2]
[406536262,1771923040856,-500.0,0.00015063,2]
[406536263,1771923040865,-743.50770149,0.00015063,2]
[406536264,1771923040875,-500.0,0.00015063,2]
[406536265,1771923040884,-500.0,0.00015063,2]
[406536266,1771923040894,-250.0,0.00015063,2]
[406536267,1771923040904,-500.0,0.00015063,2]
[406536268,1771923040913,-250.0,0.00015063,2]
[406536269,1771923040922,-500.0,0.00015063,2]
[406536270,1771923040931,-500.0,0.00015063,2]
[406536271,1771923040941,-500.0,0.00015063,2]
[406536272,1771923040950,-500.0,0.00015063,2]
[406536273,1771923040960,-500.0,0.00015063,2]
[406536274,1771923040969,-500.0,0.00015063,2]
[406536275,1771923040978,-151.0,0.00015063,2]
[406536276,1771923040987,-500.0,0.00015063,2]
[406536277,1771923040996,-500.0,0.00015063,2]
[406536278,1771923041005,-693.3919763,0.00015063,2]
[406536279,1771923041014,-500.0,0.00015063,2]
[406536280,1771923041033,-156.587,0.00015063,2]
[406536281,1771923041044,-500.0,0.00015063,2]
[406536282,1771923041053,-500.0,0.00015063,2]
[406536283,1771923041062,-500.0,0.00015063,2]
[406536284,1771923041071,-250.0,0.00015063,2]
[406536285,1771923041079,-250.0,0.00015063,2]
[406536286,1771923041089,-162.380719,0.00015063,2]
[406536287,1771923041099,-250.0,0.00015063,2]
[406536288,1771923041108,-250.0,0.00015063,2]
[406536289,1771923041117,-159.89501112,0.00015063,2]
[406536290,1771923041126,-304.87117292,0.00015063,2]
[406536291,1771923041135,-250.0,0.00015063,2]
[406536292,1771923041144,-250.0,0.00015063,2]
[406536293,1771923041153,-257.5744131,0.00015063,2]
[406536294,1771923041163,-900.0,0.00015068,2]
[406536295,1771923041172,-500.0,0.00015101,2]
[406536296,1771923041182,-151.0,0.00015118,2]
[406536297,1771923041191,-719.04747942,0.00015118,2]
[406536298,1771923041200,-1000.0,0.00015155,2]
[406536300,1771923041209,-245.76618822,0.00015157,2]
[406536302,1771923041218,-151.0,0.00015173,2]
[406536303,1771923041231,-745.65223616,0.00015173,2]
[406536304,1771923041240,-151.0,0.00015228,2]
[406536305,1771923041249,-773.2413689,0.00015228,2]
[406536306,1771923041260,-482.62264482,0.00015228,2]
[406536307,1771923041270,-500.0,0.00015264,2]
[406536308,1771923041279,-1031.27835784,0.00015264,2]
[406536309,1771923041288,-2500.0,0.00015264,2]
[406536310,1771923041300,-2500.0,0.00015264,2]
[406536311,1771923041309,-151.0,0.00015283,2]
[406536312,1771923041318,-801.85129955,0.00015283,2]
[406536313,1771923041327,-473.75,0.00015325,2]
[406536314,1771923041336,-154.57529988,0.00015338,2]
[406536315,1771923041345,-932.65135931,0.00015342,2]
[406536316,1771923041355,-2000.0,0.00015342,2]
[406536317,1771923041364,-755.82806005,0.00015342,2]
[406536318,1771923041372,-1252.0,0.00015359,2]
[406536319,1771923041382,-4609.0,0.00015383,2]
[406536320,1771923041391,-264.297783,0.0001539,7]
[406536321,1771923041405,-6562.937436,0.0001539,7]
[406536322,1771923041415,-600.0,0.00015414,2]
[406536323,1771923041424,-171.38,0.00015414,2]
[406536324,1771923041433,-1362.67534413,0.00015491,2]
[406536325,1771923041443,-482.62264482,0.00015591,2]
[406536326,1771923041452,-181.08010149,0.00015611,2]
[406536327,1771923041462,-771.01748645,0.00015611,2]
[406536328,1771923041471,-271.56778661,0.00015727,7]
[406536329,1771923041481,-2725.04997657,0.0001574,2]
[406536330,1771923041490,-293.37283971,0.00015806,2]
[406536331,1771923041500,-3000.0,0.00015812,2]
[406536332,1771923041509,-2377.20909449,0.00015812,2]
[406536333,1771923041518,-6477.84941444,0.00015817,2]
[406536334,1771923041527,-245.76618822,0.00015843,2]
[406536335,1771923041536,-454.1749961,0.00015881,2]
[406536336,1771923041545,-1200.21212036,0.0001589,2]
[406536337,1771923041554,-482.62264482,0.00015953,2]
[406536338,1771923041563,-1110.45997507,0.0001596,2]
[406536339,1771923041573,-172.69340614,0.00015966,2]
[406536340,1771923041582,-470.58,0.00015966,2]
[406536341,1771923041591,-470.58,0.00015966,2]
[406536342,1771923041600,-380.32235674,0.00016,2]
[406536343,1771923041609,-454.1749961,0.00016039,2]
[406536344,1771923041619,-380.32235674,0.000161,2]
[406536345,1771923041628,-9999.99,0.00016116,2]
[406536346,1771923041638,-187.78006525,0.00016159,2]
[406536347,1771923041647,-799.54513345,0.00016159,2]
[406536348,1771923041656,-454.1749961,0.00016196,2]
[406536349,1771923041665,-380.32235674,0.000162,2]
[406536350,1771923041675,-482.62264482,0.00016316,2]
[406536351,1771923041685,-3500.0,0.0001636,2]
[406536352,1771923041694,-470.58,0.00016365,2]
[406536353,1771923041704,-884.36,0.00016438,2]
[406536354,1771923041713,-900.0,0.00016438,2]
[406536355,1771923041724,-150.73989367,0.00016438,2]
[406536356,1771923041733,-245.76618822,0.00016528,2]
[406536357,1771923041743,-2055.625,0.00016591,2]
[406536358,1771923041753,-180.254,0.00016591,2]
[406536359,1771923041762,-482.62264482,0.00016679,2]
[406536360,1771923041775,-1362.67534412,0.00016696,2]
[406536361,1771923041784,-194.72792766,0.00016707,2]
[406536362,1771923041793,-829.12830338,0.00016707,2]
[406536363,1771923041803,-473.75,0.00016763,2]
[406536364,1771923041812,-470.58,0.00016764,2]
[406536365,1771923041822,-2129.0,0.00016854,2]
[406536366,1771923041832,-6477.84941444,0.00016858,2]
[406536367,1771923041842,-159.62910539,0.00016893,2]
[406536368,1771923041851,-500.0,0.00016904,3]
[406536369,1771923041860,-1120.70979822,0.00016908,2]
[406536370,1771923041871,-6453.0,0.00016922,2]
[406536371,1771923041880,-600.0,0.00016935,2]
[406536372,1771923041890,-171.38,0.00016935,2]
[406536373,1771923041900,-6623.03809716,0.00016958,2]
[406536374,1771923041909,-512.1,0.0001698,2]
[406536375,1771923041919,-512.1,0.0001698,2]
[406536376,1771923041929,-512.1,0.0001698,2]
[406536377,1771923041938,-512.1,0.0001698,2]
[406536378,1771923041947,-512.33,0.0001698,2]
[406536379,1771923041957,-456.85459131,0.0001698,2]
[406536380,1771923041971,-500.0,0.0001698,2]
[406536381,1771923041980,-500.0,0.0001698,2]
[406536382,1771923041990,-500.0,0.0001698,2]
[406536383,1771923041999,-617.72986232,0.0001698,2]
[406536384,1771923042009,-581.29,0.0001698,2]
[406536385,1771923042019,-581.29,0.0001698,2]
[406536386,1771923042029,-581.29,0.0001698,2]
[406536387,1771923042039,-581.29,0.0001698,2]
[406536388,1771923042049,-581.43544103,0.0001698,2]
[406536389,1771923042060,-507.72635797,0.00017,5]
[406536390,1771923042069,-300.0,0.00017,2]
[406536391,1771923042079,-482.62264482,0.00017041,2]
[406536392,1771923042089,-1613.931096,0.000171,2]
[406536393,1771923042098,-245.76618822,0.00017214,2]
[406536394,1771923042109,-201.93286099,0.00017255,2]
[406536395,1771923042119,-859.80605061,0.00017255,2]
[406536396,1771923042128,-350.0,0.00017385,2]
[406536397,1771923042138,-618.0,0.00017402,2]
[406536398,1771923042148,-1362.398,0.00017402,2]
[406536399,1771923042162,-3496.0,0.00017402,2]
[406536400,1771923042173,-1040.0,0.00017402,2]
[406536401,1771923042183,-150.597,0.00017402,2]
[406536402,1771923042193,-1277.0,0.00017402,2]
[406536403,1771923042204,-1218.319,0.00017402,2]
[406536404,1771923042214,-5980.0,0.00017402,2]
[406536405,1771923042226,-2455.0,0.00017402,2]
[406536406,1771923042237,-413.0,0.00017402,2]
[406536407,1771923042247,-482.62264482,0.00017404,2]
[406536408,1771923042258,-1194.0,0.00017483,2]
[406536409,1771923042269,-350.0,0.00017527,2]
[406536410,1771923042279,-2332.75047016,0.0001764,2]
[406536411,1771923042289,-1194.0,0.00017714,2]
[406536412,1771923042302,-350.0,0.00017733,2]
[406536413,1771923042312,-482.62264482,0.00017766,2]
[406536414,1771923042323,-209.40437684,0.00017803,2]
[406536415,1771923042333,-891.61887448,0.00017803,2]
[406536416,1771923042345,-800.0,0.00017808,2]
[406536417,1771923042359,-6979.23072247,0.0001783,2]
[406536418,1771923042369,-500.0,0.00017899,2]
[406536419,1771923042380,-500.0,0.00017899,2]
[406536420,1771923042391,-500.0,0.00017899,2]
[406536421,1771923042401,-500.0,0.00017899,2]
[406536422,1771923042412,-10148.68635422,0.00017899,2]
[406536423,1771923042422,-10148.6863542,0.00017899,2]
[406536424,1771923042432,-10148.6863542,0.00017899,2]
[406536425,1771923042443,-10148.6863542,0.000179,2]
[406536426,1771923042453,-10148.6863542,0.000179,2]
[406536427,1771923042463,-1362.67534412,0.000179,2]
[406536428,1771923042474,-245.76618822,0.000179,2]
[406536429,1771923042483,-6477.84941444,0.000179,2]
[406536430,1771923042493,-820.98997527,0.000179,3]
[406536431,1771923042504,-28939.14692918,0.000179,2]
[406536432,1771923042514,-11012.50572716,0.000179,2]
[406536433,1771923042525,-10148.6863542,0.000179,2]
[406536434,1771923042535,-653.62496497,0.000179,2]
[406536435,1771923042545,-5576.0,0.000179,2]
[406536436,1771923042557,-392.99311087,0.00017901,2]
[406536437,1771923042568,-293.37283971,0.0001799,2]
[406536438,1771923042578,-293.37283971,0.0001799,2]
[406536439,1771923042588,-268.25985649,0.00017997,2]
[406536441,1771923042598,-500.0,0.00017997,2]
[406536442,1771923042608,-500.0,0.00017997,2]
[406536444,1771923042618,-500.0,0.00017997,2]
[406536445,1771923042629,-500.0,0.00017997,2]
[406536446,1771923042639,-500.0,0.00017997,2]
[406536447,1771923042649,-500.0,0.00017997,2]
[406536448,1771923042659,-500.0,0.00017997,2]
[406536449,1771923042669,-500.0,0.00017997,2]
[406536450,1771923042679,-500.0,0.00017997,2]
[406536451,1771923042689,-500.0,0.00017997,2]
[406536452,1771923042700,-916442.2180973,0.00017998,2]
[406536453,1771923042711,-500.0,0.00017999,2]
[406536454,1771923042721,-500.0,0.00017999,2]
[406536455,1771923042731,-500.0,0.00017999,2]
[406536456,1771923042741,-500.0,0.00017999,2]
[406536457,1771923042751,-500.0,0.00017999,2]
[406536458,1771923042761,-500.0,0.00017999,2]
[406536459,1771923042771,-500.0,0.00017999,2]
[406536460,1771923042781,-500.0,0.00017999,2]
[406536461,1771923042791,-500.0,0.00017999,2]
[406536462,1771923042800,-500.0,0.00017999,2]
[406536463,1771923042810,-500.0,0.00017999,2]
[406536464,1771923042821,-500.0,0.00017999,2]
[406536465,1771923042830,-300.0,0.00017999,2]
[406536466,1771923042840,-300.0,0.00017999,2]
[406536467,1771923042852,-666.0,0.00017999,2]
[406536468,1771923042862,-666.0,0.00017999,2]
[406536469,1771923042872,-300.0,0.00017999,2]
[406536470,1771923042882,-150.0,0.00017999,2]
[406536471,1771923042893,-210.94677836,0.00017999,2]
[406536472,1771923042903,-440446.88979988,0.00018,2]
[406536473,1771923042913,-335.90401971,0.00018,30]
[406536474,1771923042923,-122842.75884386,0.00018,2]
[406536475,1771923042932,-1340270.46251453,0.00018,2]
[406536476,1771923042951,-858543.57077491,0.00018,2]
[406536477,1771923042962,-150.0,0.00018,2]
[406536478,1771923042972,-3176.86892078,0.00018,2]
[406536479,1771923042983,-1000.0,0.00018,2]
[406536480,1771923042994,-1000.0,0.00018,2]
[406536481,1771923043005,-1000.0,0.00018,2]
[406536482,1771923043015,-1000.0,0.00018,2]
[406536483,1771923043025,-1000.0,0.00018,2]
[406536484,1771923043036,-1000.0,0.00018,2]
[406536485,1771923043046,-928.1361662,0.00018,2]
[406536486,1771923043056,-195.69351822,0.00018,2]
[406536487,1771923043066,-151.78898783,0.00018,2]
[406536488,1771923043077,-1488960.53368869,0.00018,2]
[406536489,1771923043404,-6398.83436919,0.00018,2]
[406536490,1771923043415,-1558.81911971,0.00018,2]
[406536491,1771923043427,-642.33670545,0.00018,2]
[406536492,1771923043458,-253.165,0.00013844,2]
[406536506,1771923045526,-8643.47151459,0.00013844,2]
[406536516,1771923045789,-1889.11408041,0.00013844,2]
[406536517,1771923045802,-13789.84482149,0.00013844,2]
[406536524,1771923110231,-205.0,0.00010292,2]
[406536525,1771923110260,-2376.788,0.00010396,2]
[406536526,1771923110286,-180.024,0.00010396,2]
[406536527,1771923110347,-4476.386,0.00010447,2]
[406536528,1771923117931,-2404.428836,0.00010447,2]
[406536529,1771923117958,-217.52,0.000105,2]
[406536530,1771923117983,-555.69299954,0.00010508,2]
[406536531,1771923118009,-250.0,0.00010558,2]
[406536532,1771923126960,164.0,0.00012,3]
[406536829,1771923160088,-6000000.0,0.00045584,30]
[406536836,1771923184520,-6000000.0,0.00045584,30]
[406536847,1771923193306,568.28725788,0.00010508,2]
[406536853,1771923203973,-6000000.0,0.00045584,30]
[406536854,1771923204722,-300.0,0.00010607,2]
[406536855,1771923208388,9400.01,0.00010508,2]
[406536856,1771923208409,2935.89414504,0.00010508,2]
[406536858,1771923210165,-1101915.40297411,0.00045584,30]
[406536859,1771923210192,-2631.78,0.00045584,120]
[406536860,1771923210216,-499.999999,0.00045584,120]
[406536861,1771923210241,-2572175.57042982,0.00045584,30]
[406536862,1771923210265,-500598.66644924,0.00045584,30]
[406536863,1771923210296,-5000.0,0.00045584,120]
[406536864,1771923210324,-5000.0,0.00045584,120]
[406536865,1771923210349,-5000.0,0.00045584,120]
[406536866,1771923210372,-5000.0,0.00045584,120]
[406536867,1771923210396,-3000.0,0.00045584,120]
[406536868,1771923210420,-5000.0,0.00045584,120]
[406536869,1771923210445,-1532544.36537889,0.00045584,30]
[406536870,1771923210470,-240.0,0.00045584,30]
[406536871,1771923210494,-2061.6446323,0.00045584,120]
[406536872,1771923210518,-626.0,0.00045584,120]
[406536873,1771923210544,-234.64100035,0.00045584,31]
[406536874,1771923210575,-330.24519014,0.00045584,120]
[406536875,1771923210603,-280.00847901,0.00045584,60]
[406536876,1771923210631,-212.0,0.00045584,120]
[406536877,1771923210657,-3549.53380615,0.00045584,120]
[406536878,1771923210682,-655.70367925,0.00045584,90]
[406536879,1771923210707,-20344.97226678,0.00045584,120]
[406536880,1771923210731,-338.68988155,0.00045584,60]
[406536881,1771923210754,-171.15332136,0.00045584,120]
[406536882,1771923210779,-655.45985044,0.00045584,120]
[406536883,1771923210805,-2571.28959,0.00045584,120]
[406536884,1771923210829,-166.2135439,0.00045584,120]
[406536885,1771923210854,-186.87236347,0.00045584,90]
[406536886,1771923211104,-470.39113839,0.00045584,120]
[406536887,1771923211128,-834.57345242,0.00045584,120]
[406536888,1771923211155,-330.23781355,0.00045584,30]
[406536889,1771923211181,-227374.58475988,0.00045584,30]
[406536892,1771923216415,-3643298.67380022,0.00045584,30]
[406536893,1771923216441,-306.82151153,0.00045584,120]
[406536894,1771923216466,-155.38055683,0.00045584,120]
[406536895,1771923216491,-156.25018477,0.00045584,30]
[406536896,1771923216516,-2455.74787978,0.00045584,30]
[406536897,1771923216545,-495.98525342,0.00045584,120]
[406536898,1771923216570,-1589.40236675,0.00045584,120]
[406536899,1771923216594,-5132.86437824,0.00045584,30]
[406536900,1771923216619,-167.26499161,0.00045584,30]
[406536901,1771923216643,-1768.11810113,0.00045584,30]
[406536902,1771923216667,-293.04870968,0.00045584,30]
[406536903,1771923216693,-176.19139061,0.00045584,120]
[406536904,1771923216717,-939.23713548,0.00045584,47]
[406536905,1771923216742,-183.61679316,0.00045584,30]
[406536906,1771923216771,-225.25939609,0.00045584,120]
[406536907,1771923216800,-550.76854801,0.00045584,30]
[406536908,1771923216827,-362.37867549,0.00045584,30]
[406536909,1771923216857,-1078.5596011,0.00045584,30]
[406536910,1771923216884,-506.0277496,0.00045584,120]
[406536911,1771923216912,-486.49720737,0.00045584,30]
[406536912,1771923216940,-283.2301691,0.00045584,120]
[406536913,1771923216975,-185.89372452,0.00045584,120]
[406536914,1771923217005,-500.0,0.00045584,120]